{"text_format":"2","workbook":"xlsx","n_sheets":9,"sheets":["PFP","PFP1.1_Topo","PFP1.2_Geo","PFP1.3_Amb","PFP2.1_FatorKa","PFP2.2_FatorKb","PFP2.3_FatorKc","PFP3_FatorKd","CRO1_Ins-Pro"],"not_rendered":{"charts":0,"images":0,"macros":0,"external_links":0,"defined_names":5,"comments":0,"pivot_tables":0},"unopened":[],"bounds":{"document_bytes":16777216,"sheet_cells":100000,"run_cost":"one","rows_first":2000,"rows_last":500,"rows_between":2000,"halvings":0,"cell_chars":16384,"cell_head_chars":4096},"cells_cut":0,"cells_raw":0,"read":"whole","date_system":"1900"}

{"sheet":"PFP","index":0,"n_rows":46,"n_cols":11,"rows_kept":46,"cut":false,"hidden":false,"merged":[[5,9,5,10],[5,5,5,8],[29,0,29,6],[29,7,29,10],[5,0,5,4],[28,0,28,6],[28,7,28,10],[0,0,1,8],[4,5,4,8],[0,9,0,10],[1,9,1,10],[4,9,4,10],[2,0,2,10],[3,0,3,10],[4,0,4,4],[45,0,45,10],[38,0,38,10],[40,0,40,10],[33,0,33,10],[39,0,39,10],[35,0,35,10],[41,0,41,10],[42,0,42,10],[43,0,43,10],[44,0,44,10],[36,0,36,10],[31,7,31,10],[31,0,31,6],[30,7,30,10],[30,0,30,6],[37,0,37,10],[32,0,32,6],[32,7,32,10],[34,0,34,10]]}
["PROPOSTA FINANCEIRA DO PROJETO",{"$nulls":8},"CODIGO:"]
[{"$nulls":9},"PFP"]
["NOME DA CONSULTORA:"]
[]
["PROJETO:",{"$nulls":4},"CONTRATANTE:",null,null,null,"BASE: Nov/2021"]
["Estudos e Projeto Básico e Executivo do Sistema de Abastecimento de Água de Morro Cabeça no Tempo/PI",{"$nulls":4},"CODEVASF (SEDE)",null,null,null,"PROP: Nov/2021\nSINAPI/DF: Maio/2021\nSICRO/NA: Jan/2021"]
["Base","Cod2","Cod3","Categoria / Insumo","Uni","Qde","CUD","PU","FatorK","CT","PT"]
["SICRO","MO3","P0","Engenheiro coordenador (P8061)","mês",{"$f":"'CRO1_Ins-Pro'!D5","v":1},null,{"$f":"ROUND(I8*G8,2)","v":0},{"$f":"PFP2.3_FatorKc!E36","v":1},{"$f":"ROUND(F8*G8,2)","v":0},{"$f":"ROUND(F8*H8,2)","v":0}]
["SICRO","MO2","P1","Engenheiro sênior (P8067)","mês",{"$f":"'CRO1_Ins-Pro'!D6","v":2},null,0,{"$f":"PFP2.2_FatorKb!$E$36","v":1},0,0]
["SICRO","MO1","P2","Engenheiro pleno (P8066)","mês",{"$f":"'CRO1_Ins-Pro'!D7","v":3},null,{"$f":"ROUND(I10*G10,2)","v":0},{"$f":"PFP2.1_FatorKa!$E$36","v":1},{"$f":"ROUND(F10*G10,2)","v":0},0]
["SICRO","MO1","P3","Engenheiro júnior (P8065)","mês",{"$f":"'CRO1_Ins-Pro'!D8","v":1},null,{"$f":"ROUND(I11*G11,2)","v":0},{"$f":"PFP2.1_FatorKa!$E$36","v":1},{"$f":"ROUND(F11*G11,2)","v":0},0]
["SICRO","MO1","T1","Técnico de projetos/obra (P8147)","mês",{"$f":"'CRO1_Ins-Pro'!D9","v":3},null,0,{"$f":"PFP2.1_FatorKa!$E$36","v":1},0,0]
["SICRO","MO1","A1","Secretária (P8135)","mês",{"$f":"'CRO1_Ins-Pro'!D10","v":1},null,{"$f":"ROUND(I13*G13,2)","v":0},{"$f":"PFP2.1_FatorKa!$E$36","v":1},{"$f":"ROUND(F13*G13,2)","v":0},{"$f":"ROUND(F13*H13,2)","v":0}]
["PROP","MO1","S1","Analista sênior","mês",{"$f":"'CRO1_Ins-Pro'!D11","v":0.5},null,0,{"$f":"PFP2.1_FatorKa!$E$36","v":1},0,0]
["PROP","MO1","S2","Analista pleno","mês",{"$f":"'CRO1_Ins-Pro'!D12","v":0.5},null,0,{"$f":"PFP2.1_FatorKa!$E$36","v":1},0,0]
["PROP","MO1","S3","Analista júnior","mês",{"$f":"'CRO1_Ins-Pro'!D13","v":1},null,0,{"$f":"PFP2.1_FatorKa!$E$36","v":1},0,0]
["SICRO","EC","ECA","Encargos Comp. e Adicionais","mês",{"$f":"'CRO1_Ins-Pro'!D14","v":11},null,0,{"$f":"PFP3_FatorKd!$E$17","v":1},{"$f":"ROUND(F17*G17,2)","v":0},{"$f":"ROUND(F17*H17,2)","v":0}]
["PROP","EC","AT1","Auxilio Transporte Analista junior","mês",{"$f":"F16","v":1},null,{"$f":"ROUND(I18*G18,2)","v":0},{"$f":"PFP3_FatorKd!$E$17","v":1},{"$f":"ROUND(F18*G18,2)","v":0},{"$f":"ROUND(F18*H18,2)","v":0}]
["PROP","EC","AT2","Auxilio Transporte Técnicos","mês",{"$f":"'CRO1_Ins-Pro'!D16","v":2},null,{"$f":"ROUND(I19*G19,2)","v":0},{"$f":"PFP3_FatorKd!$E$17","v":1},{"$f":"ROUND(F19*G19,2)","v":0},{"$f":"ROUND(F19*H19,2)","v":0}]
["PROP","EC","AT3","Auxilio Transporte Secretária","mês",{"$f":"'CRO1_Ins-Pro'!D17","v":1},null,0,{"$f":"PFP3_FatorKd!$E$17","v":1},0,0]
["CODE","LO","V1","Diárias","dia",{"$f":"'CRO1_Ins-Pro'!D18","v":28},null,0,{"$f":"PFP3_FatorKd!$E$17","v":1},0,0]
["PROP","LO","V2","Pick-up Cab.dupla 2.0 Flex","dia",{"$f":"'CRO1_Ins-Pro'!D19","v":14},null,0,{"$f":"PFP3_FatorKd!$E$17","v":1},0,0]
["PROP","LO","V3","Passagens Aéreas (ida e volta)","un",{"$f":"'CRO1_Ins-Pro'!D20","v":4},null,0,{"$f":"PFP3_FatorKd!$E$17","v":1},0,0]
["CODE","EM","M1","Relatório Parcial","un",{"$f":"'CRO1_Ins-Pro'!D21","v":9},null,0,{"$f":"PFP3_FatorKd!$E$17","v":1},0,{"$f":"ROUND(F24*H24,2)","v":0}]
["CODE","EM","M2","Relatório Final","un",{"$f":"'CRO1_Ins-Pro'!D22","v":9},null,0,{"$f":"PFP3_FatorKd!$E$17","v":1},0,{"$f":"ROUND(F25*H25,2)","v":0}]
["CODE","SU","TOP","Total Serviços Cartográficos","un",{"$f":"'CRO1_Ins-Pro'!D23","v":1},"-",null,"-","-",{"$f":"ROUND(F26*H26,2)","v":0}]
["CODE","SU","GEO","Total Serviços Geotécnicos","un",{"$f":"'CRO1_Ins-Pro'!D24","v":1},"-",null,"-","-",{"$f":"ROUND(F27*H27,2)","v":0}]
["CODE","SU","AMB","Total Serviços Ambientais","un",{"$f":"'CRO1_Ins-Pro'!D25","v":1},"-",null,"-","-",{"$f":"ROUND(F28*H28,2)","v":0}]
["TOTAL DOS CUSTOS DIRETOS",{"$nulls":6},{"$f":"SUM(J8:J28)","v":0}]
["TOTAL DOS ENCARGOS E DISPESAS DIVERSAS",{"$nulls":6},{"$f":"H31-H29","v":0}]
["TOTAL DA PROPOSTA A PREÇO GLOBAL",{"$nulls":6},{"$f":"SUM(K8:K25)","v":0}]
["TOTAL DA PROPOSTA A PREÇO UNITÁRIO",{"$nulls":6},{"$f":"SUM(K26:K28)","v":0}]
["TOTAL DA PROPOSTA",{"$nulls":6},{"$f":"H31+H32","v":0}]
["OBSERVAÇÃO:"]
["Alocar os Insumos MO, com respectivo FatorK, dentro da categoria de vínculo contratual (celetista, autonomo, societario)"]
["Uni - unidade de medição do insumo;"]
["Qde - Quantidade do Insumo (não pode ocorrer alteração pela Licitante)"]
["CUD - Custo Unitário Direto do Insumo (sem encargos, taxas e impostos, valor não pode ser maior que o Orçado pela Codevasf)"]
["CT - Custo Total (sem encargos, taxas e impostos) - CT = Qde x CUD"]
["FatorK - Taxa de Ressarcimento de Despesas e Encargos (detalhar composição nas Planilhas \"PFP2.1\", \"PFP2.2\", \"PFP3\")"]
["PU - Preço Unitário do Insumo (incluído encargos, taxas e impostos) - PU = CUD x FatorK"]
["PT - Preço Total do Insumo (incluído encargos, taxas e impostos) - PT = Qde x PU"]
["P - Profissionais nível superior nas áreas de Engenharia, Química, Arquitetura, Agronomia e Veterinária, conforme disposições da Lei 4.950-A/66"]
["S - Profissionais de nível superior nas demais áreas de atuação, incluindo Arqueólogo, Biólogo, Geógrafo e Sociólogo"]
["T - Profissionais de nível médio técnico nas diversas áreas de atuação"]
["A - Profissionais de nível médio de apoio técnico-administrativo"]

{"sheet":"PFP1.1_Topo","index":1,"n_rows":28,"n_cols":7,"rows_kept":28,"cut":false,"hidden":false,"merged":[[4,0,4,3],[2,0,2,6],[3,0,3,6],[22,0,22,5],[0,0,1,5],[5,0,5,3],[4,4,4,5],[5,4,5,5],[26,0,26,6],[27,0,27,6],[23,0,23,6],[24,0,24,6],[25,0,25,6]]}
["SERVIÇOS TOPOGRÁFICOS/CARTOGRÁFICOS",{"$nulls":5},"CODIGO:"]
[{"$nulls":6},"PFP-1.1"]
["NOME DA EMPRESA:"]
[]
["PROJETO:",null,null,null,"CONTRATANTE:",null,"BASE: Nov/2021"]
[{"$f":"PFP!A6","v":"Estudos e Projeto Básico e Executivo do Sistema de Abastecimento de Água de Morro Cabeça no Tempo/PI"},null,null,null,"CODEVASF (SEDE)",null,"CODE: Ago/2021"]
["Cod.","Base","Insumos","Uni","Qde","Preço Unitário (PU)","Preço Total (PT)"]
["TP08","CODE","Nivelamento Geométrico classe IIN","km",20,null,{"$f":"ROUND(F8*E8,2)","v":0}]
["TP09","CODE","Nivelamento Geométrico classe IIN (Secções)","km",20,null,0]
["TP16.1","CODE","Poligonal Classe IIP (Locação)","km",20,null,0]
["TP19","CODE","Pontos GPS de dupla frequencia (L1/L2)","km",8,null,0]
["TP21","CODE","Levantamento Topobatimétrico","km",1,null,0]
["TP23","CODE","Cadastro Físico (Faixa domínio e instalações)","ha ",20,null,0]
["TP24","CODE","Cadastro Agrícola (Faixa domínio e instalações)","ha ",20,null,0]
["TP25","CODE","Cadastro Jurídico (Faixa domínio e instalações)","ha ",20,null,0]
["TP26","CODE","Cadastro Socioeconomico (Faixa domínio e instalações)","ha ",20,null,0]
["TP27","CODE","Marco de Concreto (12x18x60cm)","un",8,null,0]
["TP28","CODE","Estaca Testemunha de Madeira (2x4x70cm)","un",100,null,0]
["TP29","CODE","Piquetes de Madeira (2x2x20cm)","un",1000,null,0]
["TP30","CODE","Imagem de Satelite de Alta Definição 0,5 M","km²",100,null,0]
["PD06","CODE","Picada Manual p/ levantamento TP","km",10,null,0]
["PD08","CODE","Picada c/ Trator de Esteira","un",4,null,0]
["TOTAL SERVIÇOS TOPOGRÁFICOS",{"$nulls":5},{"$f":"SUM(G8:G22)","v":0}]
["OBSERVAÇÃO:"]
["Uni - unidade de medição do insumo;"]
["Qde - Quantidade do Insumo (não pode ocorrer alteração pela Licitante)"]
["PU - Preço Unitário (composições padrão da Codevasf, já incluso o FatorK)"]
["PT - Preço Total (incluído encargos, taxas e impostos) - PT = Qde x PU"]

{"sheet":"PFP1.2_Geo","index":2,"n_rows":39,"n_cols":7,"rows_kept":39,"cut":false,"hidden":false,"merged":[[4,0,4,3],[4,4,4,5],[2,0,2,6],[3,0,3,6],[0,0,1,5],[33,0,33,5],[37,0,37,6],[5,0,5,3],[5,4,5,5],[38,0,38,6],[34,0,34,6],[35,0,35,6],[36,0,36,6]]}
["SERVIÇOS GEOLÓGICOS/GEOTÉCNICOS",{"$nulls":5},"CODIGO:"]
[{"$nulls":6},"PFP-1.2"]
["NOME DA EMPRESA:"]
[]
["PROJETO:",null,null,null,"CONTRATANTE:",null,"BASE: Nov/2021"]
[{"$f":"PFP!A6","v":"Estudos e Projeto Básico e Executivo do Sistema de Abastecimento de Água de Morro Cabeça no Tempo/PI"},null,null,null,"CODEVASF (SEDE)",null,"CODE: Ago/2021"]
["Cod.","Base","Insumos","Uni","Qde","Preço Unitário (PU)","Preço Total (PT)"]
["GT07","CODE","Sondagem Percussão: (Des)Mobilização","un",2,null,{"$f":"ROUND(F8*E8,2)","v":0}]
["GT08","CODE","Sondagem Percursão: com SPT","m",24,null,0]
["GT09","CODE","Sondagem Percursão: Desloc/Instalação 0-200 m","un",4,null,0]
["GT10","CODE","Sondagem Percursão: Desloc/Instalação 201-500 m","un",2,null,0]
["GT11","CODE","Sondagem Percursão: Desloc/Instalação >500 m","un",10,null,0]
["GT13","CODE","Sondagem Trado 4''","m",10,null,0]
["GT14","CODE","Poço de Inspeção","m",60,null,0]
["GT15","CODE","Ensaio: Umidade Natural ","un",4,null,0]
["GT16","CODE","Ensaio: Densidade Natural","un",4,null,0]
["GT17","CODE","Ensaio: Limite de Liquidez","un",4,null,0]
["GT18","CODE","Ensaio: Limite de Plasticidade","un",4,null,0]
["GT19","CODE","Ensaio: Granulometria por Peneiramento","un",4,null,0]
["GT20","CODE","Ensaio: Granulometria por Sedimentação","un",4,null,0]
["GT21","CODE","Ensaio: Compactação Proctor Normal","un",4,null,0]
["GT22","CODE","Ensaio: Massa Especifica Real dos Grãos","un",4,null,0]
["GT23","CODE","Ensaio: Adensamento Oedométrico","un",4,null,0]
["GT28","CODE","Ensaio: Dispersão Granulometria Comparativa","un",4,null,0]
["GT29","CODE","Ensaio: Dispersão Crumb Test","un",4,null,0]
["GT30","CODE","Ensaio: Infiltração","un",4,null,0]
["GT32","CODE","Ensaio: Análise Quimica da Areia","un",2,null,0]
["GT33","CODE","Ensaio: Mineralogia da Areia","un",2,null,0]
["GT34","CODE","Ensaio: Análise Petrográfica/Mineralogia","un",2,null,0]
["GT35","CODE","Ensaio: Abrasão Los Angeles","un",2,null,0]
["GT36","CODE","Ensaio: Reatividade Potencial","un",2,null,0]
["GT38","CODE","Ensaio: Retirada de Amostra Indeformada","un",2,null,{"$f":"ROUND(F32*E32,2)","v":0}]
["GT99","PROP","Levantamento geofísico por eletroressistividade","un",3,null,{"$f":"ROUND(F33*E33,2)","v":0}]
["TOTAL SERVIÇOS GEOTÉCNICOS",{"$nulls":5},{"$f":"SUM(G8:G33)","v":0}]
["LEGENDA:"]
["Uni - unidade de medição do insumo;"]
["Qde - Quantidade do Insumo (não pode ocorrer alteração pela Licitante)"]
["PU - Preço Unitário (composições padrão da Codevasf, já incluso o FatorK)"]
["PT - Preço Total (incluído encargos, taxas e impostos) - PT = Qde x PU"]

{"sheet":"PFP1.3_Amb","index":3,"n_rows":34,"n_cols":7,"rows_kept":34,"cut":false,"hidden":false,"merged":[[33,0,33,6],[0,0,1,5],[2,0,2,6],[3,0,3,6],[4,0,4,3],[4,4,4,5],[5,0,5,3],[5,4,5,5],[28,0,28,5],[29,0,29,6],[30,0,30,6],[31,0,31,6],[32,0,32,6]]}
["SERVIÇOS ANÁLISE AMBIENTAL",{"$nulls":5},"CODIGO:"]
[{"$nulls":6},"PFP-1.3"]
["NOME DA EMPRESA:"]
[]
["PROJETO:",null,null,null,"CONTRATANTE:",null,"BASE: Nov/2021"]
[{"$f":"PFP!A6","v":"Estudos e Projeto Básico e Executivo do Sistema de Abastecimento de Água de Morro Cabeça no Tempo/PI"},null,null,null,"CODEVASF (SEDE)",null,"CODE: Ago/2021"]
["Cod.","Base","Insumos","Uni","Qde","Preço Unitário (PU)","Preço Total (PT)"]
["AM01","PROP","Alcalinidade Total","un",3,null,{"$f":"ROUND(E8*F8,2)","v":0}]
["AM02","PROP","Condutividade","un",3,null,{"$f":"ROUND(E9*F9,2)","v":0}]
["AM03","PROP","DBO","un",3,null,0]
["AM04","PROP","DQO","un",3,null,0]
["AM05","PROP","Salinidade","un",3,null,0]
["AM06","PROP","Sólidos Dissolvidos Totais","un",3,null,0]
["AM07","PROP","Sólidos Suspensos","un",3,null,0]
["AM08","PROP","Sólidos Totais","un",3,null,0]
["AM09","PROP","Turbidez","un",3,null,0]
["AM10","PROP","Oxigênio Dissolvido","un",3,null,0]
["AM11","PROP","pH","un",3,null,0]
["AM12","PROP","Temperatura","un",3,null,0]
["AM13","PROP","Fósforo Total","un",3,null,0]
["AM14","PROP","Nitrogênio Amoniacal","un",3,null,0]
["AM15","PROP","Nitrogênio Nitrato","un",3,null,0]
["AM16","PROP","Nitrogênio Total","un",3,null,0]
["AM17","PROP","Clorofila A","un",3,null,0]
["AM18","PROP","Coliformes Termotolerantes","un",3,null,0]
["AM19","PROP","Metais Pesados","un",3,null,0]
["AM20","PROP","Organoclorados","un",3,null,0]
["AM21","PROP","Organofosforado","un",3,null,{"$f":"ROUND(E28*F28,2)","v":0}]
["TOTAL SERVIÇOS GEOTÉCNICOS",{"$nulls":5},{"$f":"SUM(G8:G28)","v":0}]
["LEGENDA:"]
["Uni - unidade de medição do insumo;"]
["Qde - Quantidade do Insumo (não pode ocorrer alteração pela Licitante)"]
["PU - Preço Unitário (composições padrão da Codevasf, já incluso o FatorK)"]
["PT - Preço Total (incluído encargos, taxas e impostos) - PT = Qde x PU"]

{"sheet":"PFP2.1_FatorKa","index":4,"n_rows":41,"n_cols":6,"rows_kept":41,"cut":false,"hidden":false,"merged":[[6,1,6,3],[32,1,32,3],[34,1,34,3],[35,1,35,3],[18,1,18,3],[19,1,19,3],[20,1,20,3],[21,1,21,3],[23,1,23,3],[24,1,24,3],[7,1,7,3],[17,1,17,3],[8,1,8,3],[13,1,13,3],[14,1,14,3],[15,1,15,3],[0,0,1,4],[2,0,2,5],[5,0,5,1],[5,2,5,4],[4,2,4,4],[3,0,3,5],[16,1,16,3],[9,1,9,3],[10,1,10,3],[11,1,11,3],[12,1,12,3],[40,0,40,5],[39,0,39,5],[38,0,38,5],[37,0,37,5],[22,1,22,3],[29,1,29,3],[30,1,30,3],[28,1,28,3],[25,1,25,3],[26,1,26,3],[27,1,27,3],[33,1,33,3],[31,1,31,3]]}
["DETALHAMENTO DOS ENCARGOS SOCIAIS: Ka",{"$nulls":4},"CODIGO:"]
[{"$nulls":5},"PFP-2.1"]
["NOME DA CONSULTORA:"]
[]
["PROJETO:",null,"CONTRATANTE:",null,null,"BASE: Nov/2021"]
[{"$f":"PFP!A6","v":"Estudos e Projeto Básico e Executivo do Sistema de Abastecimento de Água de Morro Cabeça no Tempo/PI"},null,"CODEVASF (SEDE)",null,null,"SINAPI/DF: Mai/2021"]
["Cod","DESCRIÇÃO",null,null,"%","R$"]
["A","ENCARGOS SOCIAIS BÁSICOS",null,null,{"$f":"ROUND(SUM(E9:E17),4)","v":0},{"$f":"ROUND(E8*SUMIF(PFP!$B$8:$B$27,\"MO1\",PFP!$J$8:$J$27),2)","v":0}]
["A1","INSS",null,null,null,{"$f":"ROUND(E9*SUMIF(PFP!$B$8:$B$27,\"MO1\",PFP!$J$8:$J$27),2)","v":0}]
["A2","SESI",null,null,null,{"$f":"ROUND(E10*SUMIF(PFP!$B$8:$B$27,\"MO1\",PFP!$J$8:$J$27),2)","v":0}]
["A3","SENAI",null,null,null,{"$f":"ROUND(E11*SUMIF(PFP!$B$8:$B$27,\"MO1\",PFP!$J$8:$J$27),2)","v":0}]
["A4","INCRA",null,null,null,{"$f":"ROUND(E12*SUMIF(PFP!$B$8:$B$27,\"MO1\",PFP!$J$8:$J$27),2)","v":0}]
["A5","SEBRAE",null,null,null,{"$f":"ROUND(E13*SUMIF(PFP!$B$8:$B$27,\"MO1\",PFP!$J$8:$J$27),2)","v":0}]
["A6","Salário Educação",null,null,null,{"$f":"ROUND(E14*SUMIF(PFP!$B$8:$B$27,\"MO1\",PFP!$J$8:$J$27),2)","v":0}]
["A7","Seguro Contra Acidentes de Trabalho",null,null,null,{"$f":"ROUND(E15*SUMIF(PFP!$B$8:$B$27,\"MO1\",PFP!$J$8:$J$27),2)","v":0}]
["A8","FGTS",null,null,null,{"$f":"ROUND(E16*SUMIF(PFP!$B$8:$B$27,\"MO1\",PFP!$J$8:$J$27),2)","v":0}]
["A9","SECONCI",null,null,null,{"$f":"ROUND(E17*SUMIF(PFP!$B$8:$B$27,\"MO1\",PFP!$J$8:$J$27),2)","v":0}]
["B"," ENCARGOS SOCIAIS QUE RECEBEM INCIDÊNCIA DE \"A\"",null,null,{"$f":"ROUND(SUM(E19:E25),4)","v":0},{"$f":"ROUND(E18*SUMIF(PFP!$B$8:$B$27,\"MO1\",PFP!$J$8:$J$27),2)","v":0}]
["B3","Auxílio Enfermidade",null,null,null,{"$f":"ROUND(E19*SUMIF(PFP!$B$8:$B$27,\"MO1\",PFP!$J$8:$J$27),2)","v":0}]
["B4","13º Salário",null,null,null,{"$f":"ROUND(E20*SUMIF(PFP!$B$8:$B$27,\"MO1\",PFP!$J$8:$J$27),2)","v":0}]
["B5","Licença Paternidade",null,null,null,{"$f":"ROUND(E21*SUMIF(PFP!$B$8:$B$27,\"MO1\",PFP!$J$8:$J$27),2)","v":0}]
["B6","Faltas Justificadas",null,null,null,{"$f":"ROUND(E22*SUMIF(PFP!$B$8:$B$27,\"MO1\",PFP!$J$8:$J$27),2)","v":0}]
["B8","Auxílio Acidente de Trabalho",null,null,null,{"$f":"ROUND(E23*SUMIF(PFP!$B$8:$B$27,\"MO1\",PFP!$J$8:$J$27),2)","v":0}]
["B9","Férias Gozadas",null,null,null,{"$f":"ROUND(E24*SUMIF(PFP!$B$8:$B$27,\"MO1\",PFP!$J$8:$J$27),2)","v":0}]
["B10","Salário Maternidade",null,null,null,{"$f":"ROUND(E25*SUMIF(PFP!$B$8:$B$27,\"MO1\",PFP!$J$8:$J$27),2)","v":0}]
["C"," ENCARGOS SOCIAIS QUE NÃO RECEBEM INCIDÊNCIA DE \"A\"",null,null,{"$f":"ROUND(SUM(E27:E31),4)","v":0},{"$f":"ROUND(E26*SUMIF(PFP!$B$8:$B$27,\"MO1\",PFP!$J$8:$J$27),2)","v":0}]
["C1","Aviso Prévio Indenizado",null,null,null,{"$f":"ROUND(E27*SUMIF(PFP!$B$8:$B$27,\"MO1\",PFP!$J$8:$J$27),2)","v":0}]
["C2","Aviso Prévio Trabalhado",null,null,null,{"$f":"ROUND(E28*SUMIF(PFP!$B$8:$B$27,\"MO1\",PFP!$J$8:$J$27),2)","v":0}]
["C3","Férias Indenizadas",null,null,null,{"$f":"ROUND(E29*SUMIF(PFP!$B$8:$B$27,\"MO1\",PFP!$J$8:$J$27),2)","v":0}]
["C4","Depósito Rescisão Sem Justa Causa",null,null,null,{"$f":"ROUND(E30*SUMIF(PFP!$B$8:$B$27,\"MO1\",PFP!$J$8:$J$27),2)","v":0}]
["C5","Indenização Adicional",null,null,null,{"$f":"ROUND(E31*SUMIF(PFP!$B$8:$B$27,\"MO1\",PFP!$J$8:$J$27),2)","v":0}]
["D"," REINCIDÊNCIAS",null,null,{"$f":"ROUND(SUM(E33:E34),4)","v":0},{"$f":"ROUND(E32*SUMIF(PFP!$B$8:$B$27,\"MO1\",PFP!$J$8:$J$27),2)","v":0}]
["D1","Reincidência de \"A\" sobre \"B\"",null,null,{"$f":"ROUND(E8*E18,4)","v":0},{"$f":"ROUND(E33*SUMIF(PFP!$B$8:$B$27,\"MO1\",PFP!$J$8:$J$27),2)","v":0}]
["D2","Reincidência de \"A\" sobre Aviso Prévio Trabalhado e reincidência do FGTS sobre Aviso Prévio Indenizado",null,null,{"$f":"ROUND((E28*E8)+(E27*E16),4)","v":0},{"$f":"ROUND(E34*SUMIF(PFP!$B$8:$B$27,\"MO1\",PFP!$J$8:$J$27),2)","v":0}]
["K1a","ENCARGOS SOCIAIS",null,null,{"$f":"ROUND(E8+E18+E26+E32,4)","v":0},{"$f":"ROUND(E35*SUMIF(PFP!$B$8:$B$27,\"MO1\",PFP!$J$8:$J$27),2)","v":0}]
["Ka","TAXA DE RESSARCIMENTO DE DESPESAS E ENCARGOS SOBRE MO1",null,null,{"$f":"ROUND((1+E35+PFP3_FatorKd!E13)*(1+PFP3_FatorKd!E12)*(1+PFP3_FatorKd!E8),4)","v":1}]
["OBSERVAÇÃO: CELETISTAS E EQUIVALENTES"]
["1 - DISCRIMINAR OS ENCARGOS SOCIAIS COM SEUS RESPECTIVOS PERCENTUAS TOTALIZANDO OS MESMOS. "]
["2 - APLICAR O  % TOTAL P/ CALCULAR OS E. SOCIAIS INCIDENTES NA MÃO-DE-OBRA CELETISTAS"]
["Ka - Taxa de Ressarcimento de Despesas e Encargos sobre a Mão de Obra CELETISTA (incide apenas no Insumo Codigo MO1)"]
["Ka = (1 + K1 + K2) x (1 + K3) x (1 + K4)"]

{"sheet":"PFP2.2_FatorKb","index":5,"n_rows":41,"n_cols":6,"rows_kept":41,"cut":false,"hidden":false,"merged":[[19,1,19,3],[0,0,1,4],[2,0,2,5],[3,0,3,5],[4,2,4,4],[5,0,5,1],[5,2,5,4],[7,1,7,3],[17,1,17,3],[18,1,18,3],[8,1,8,3],[9,1,9,3],[10,1,10,3],[16,1,16,3],[6,1,6,3],[12,1,12,3],[40,0,40,5],[37,0,37,5],[38,0,38,5],[39,0,39,5],[32,1,32,3],[33,1,33,3],[34,1,34,3],[35,1,35,3],[13,1,13,3],[14,1,14,3],[15,1,15,3],[11,1,11,3],[31,1,31,3],[20,1,20,3],[21,1,21,3],[22,1,22,3],[23,1,23,3],[24,1,24,3],[25,1,25,3],[26,1,26,3],[27,1,27,3],[28,1,28,3],[29,1,29,3],[30,1,30,3]]}
["DETALHAMENTO DOS ENCARGOS SOCIAIS: Kb",{"$nulls":4},"CODIGO:"]
[{"$nulls":5},"PFP-2.2"]
["NOME DA CONSULTORA:"]
[]
["PROJETO:",null,"CONTRATANTE:",null,null,"BASE: Nov/2021"]
[{"$f":"PFP!A6","v":"Estudos e Projeto Básico e Executivo do Sistema de Abastecimento de Água de Morro Cabeça no Tempo/PI"},null,"CODEVASF (SEDE)",null,null,"SINAPI/DF: Mai/2021"]
["Cod","DESCRIÇÃO",null,null,"%","R$"]
["A","ENCARGOS SOCIAIS BÁSICOS",null,null,{"$f":"ROUND(SUM(E9:E17),4)","v":0},{"$f":"ROUND(E8*SUMIF(PFP!$B$8:$B$27,\"MO2\",PFP!$J$8:$J$27),2)","v":0}]
["A1","INSS",null,null,null,{"$f":"ROUND(E9*SUMIF(PFP!$B$8:$B$27,\"MO2\",PFP!$J$8:$J$27),2)","v":0}]
["A2","SESI",null,null,null,{"$f":"ROUND(E10*SUMIF(PFP!$B$8:$B$27,\"MO2\",PFP!$J$8:$J$27),2)","v":0}]
["A3","SENAI",null,null,null,{"$f":"ROUND(E11*SUMIF(PFP!$B$8:$B$27,\"MO2\",PFP!$J$8:$J$27),2)","v":0}]
["A4","INCRA",null,null,null,{"$f":"ROUND(E12*SUMIF(PFP!$B$8:$B$27,\"MO2\",PFP!$J$8:$J$27),2)","v":0}]
["A5","SEBRAE",null,null,null,{"$f":"ROUND(E13*SUMIF(PFP!$B$8:$B$27,\"MO2\",PFP!$J$8:$J$27),2)","v":0}]
["A6","Salário Educação",null,null,null,{"$f":"ROUND(E14*SUMIF(PFP!$B$8:$B$27,\"MO2\",PFP!$J$8:$J$27),2)","v":0}]
["A7","Seguro Contra Acidentes de Trabalho",null,null,null,{"$f":"ROUND(E15*SUMIF(PFP!$B$8:$B$27,\"MO2\",PFP!$J$8:$J$27),2)","v":0}]
["A8","FGTS",null,null,null,{"$f":"ROUND(E16*SUMIF(PFP!$B$8:$B$27,\"MO2\",PFP!$J$8:$J$27),2)","v":0}]
["A9","SECONCI",null,null,null,{"$f":"ROUND(E17*SUMIF(PFP!$B$8:$B$27,\"MO2\",PFP!$J$8:$J$27),2)","v":0}]
["B"," ENCARGOS SOCIAIS QUE RECEBEM INCIDÊNCIA DE \"A\"",null,null,{"$f":"ROUND(SUM(E19:E25),4)","v":0},{"$f":"ROUND(E18*SUMIF(PFP!$B$8:$B$27,\"MO2\",PFP!$J$8:$J$27),2)","v":0}]
["B3","Auxílio Enfermidade",null,null,null,{"$f":"ROUND(E19*SUMIF(PFP!$B$8:$B$27,\"MO2\",PFP!$J$8:$J$27),2)","v":0}]
["B4","13º Salário",null,null,null,{"$f":"ROUND(E20*SUMIF(PFP!$B$8:$B$27,\"MO2\",PFP!$J$8:$J$27),2)","v":0}]
["B5","Licença Paternidade",null,null,null,{"$f":"ROUND(E21*SUMIF(PFP!$B$8:$B$27,\"MO2\",PFP!$J$8:$J$27),2)","v":0}]
["B6","Faltas Justificadas",null,null,null,{"$f":"ROUND(E22*SUMIF(PFP!$B$8:$B$27,\"MO2\",PFP!$J$8:$J$27),2)","v":0}]
["B8","Auxílio Acidente de Trabalho",null,null,null,{"$f":"ROUND(E23*SUMIF(PFP!$B$8:$B$27,\"MO2\",PFP!$J$8:$J$27),2)","v":0}]
["B9","Férias Gozadas",null,null,null,{"$f":"ROUND(E24*SUMIF(PFP!$B$8:$B$27,\"MO2\",PFP!$J$8:$J$27),2)","v":0}]
["B10","Salário Maternidade",null,null,null,{"$f":"ROUND(E25*SUMIF(PFP!$B$8:$B$27,\"MO2\",PFP!$J$8:$J$27),2)","v":0}]
["C"," ENCARGOS SOCIAIS QUE NÃO RECEBEM INCIDÊNCIA DE \"A\"",null,null,{"$f":"ROUND(SUM(E27:E31),4)","v":0},{"$f":"ROUND(E26*SUMIF(PFP!$B$8:$B$27,\"MO2\",PFP!$J$8:$J$27),2)","v":0}]
["C1","Aviso Prévio Indenizado",null,null,null,{"$f":"ROUND(E27*SUMIF(PFP!$B$8:$B$27,\"MO2\",PFP!$J$8:$J$27),2)","v":0}]
["C2","Aviso Prévio Trabalhado",null,null,null,{"$f":"ROUND(E28*SUMIF(PFP!$B$8:$B$27,\"MO2\",PFP!$J$8:$J$27),2)","v":0}]
["C3","Férias Indenizadas",null,null,null,{"$f":"ROUND(E29*SUMIF(PFP!$B$8:$B$27,\"MO2\",PFP!$J$8:$J$27),2)","v":0}]
["C4","Depósito Rescisão Sem Justa Causa",null,null,null,{"$f":"ROUND(E30*SUMIF(PFP!$B$8:$B$27,\"MO2\",PFP!$J$8:$J$27),2)","v":0}]
["C5","Indenização Adicional",null,null,null,{"$f":"ROUND(E31*SUMIF(PFP!$B$8:$B$27,\"MO2\",PFP!$J$8:$J$27),2)","v":0}]
["D"," REINCIDÊNCIAS",null,null,{"$f":"ROUND(SUM(E33:E34),4)","v":0},{"$f":"ROUND(E32*SUMIF(PFP!$B$8:$B$27,\"MO2\",PFP!$J$8:$J$27),2)","v":0}]
["D1","Reincidência de \"A\" sobre \"B\"",null,null,null,{"$f":"ROUND(E33*SUMIF(PFP!$B$8:$B$27,\"MO2\",PFP!$J$8:$J$27),2)","v":0}]
["D2","Reincidência de \"A\" sobre Aviso Prévio Trabalhado e reincidência do FGTS sobre Aviso Prévio Indenizado",null,null,null,{"$f":"ROUND(E34*SUMIF(PFP!$B$8:$B$27,\"MO2\",PFP!$J$8:$J$27),2)","v":0}]
["K1b","ENCARGOS SOCIAIS",null,null,{"$f":"ROUND(E8+E18+E26+E32,4)","v":0},{"$f":"ROUND(E35*SUMIF(PFP!$B$8:$B$27,\"MO2\",PFP!$J$8:$J$27),2)","v":0}]
["Kb","TAXA DE RESSARCIMENTO DE DESPESAS E ENCARGOS SOBRE MO2",null,null,{"$f":"ROUND((1+E35+PFP3_FatorKd!E13)*(1+PFP3_FatorKd!E12)*(1+PFP3_FatorKd!E8),4)","v":1}]
["OBSERVAÇÃO: AUTÔNOMOS E EQUIVALENTES"]
["1 - DISCRIMINAR OS ENCARGOS SOCIAIS COM SEUS RESPECTIVOS PERCENTUAS TOTALIZANDO OS MESMOS. "]
["2 - APLICAR O % TOTAL P/ CALCULAR OS E. SOCIAIS INCIDENTES NA MÃO-DE-OBRA AUTONÔMOS"]
["Kb - Taxa de Ressarcimento de Despesas e Encargos sobre a Mão de Obra AUTONÔMA (incide apenas no Insumo Codigo MO2)"]
["Kb = (1 + K1 + K2) x (1 + K3) x (1 + K4)"]

{"sheet":"PFP2.3_FatorKc","index":6,"n_rows":41,"n_cols":6,"rows_kept":41,"cut":false,"hidden":false,"merged":[[37,0,37,5],[38,0,38,5],[39,0,39,5],[40,0,40,5],[30,1,30,3],[31,1,31,3],[32,1,32,3],[33,1,33,3],[34,1,34,3],[35,1,35,3],[29,1,29,3],[18,1,18,3],[19,1,19,3],[20,1,20,3],[21,1,21,3],[22,1,22,3],[23,1,23,3],[24,1,24,3],[25,1,25,3],[26,1,26,3],[27,1,27,3],[28,1,28,3],[17,1,17,3],[6,1,6,3],[7,1,7,3],[8,1,8,3],[9,1,9,3],[10,1,10,3],[11,1,11,3],[12,1,12,3],[13,1,13,3],[14,1,14,3],[15,1,15,3],[16,1,16,3],[0,0,1,4],[2,0,2,5],[3,0,3,5],[4,2,4,4],[5,0,5,1],[5,2,5,4]]}
["DETALHAMENTO DOS ENCARGOS SOCIAIS: Kc",{"$nulls":4},"CODIGO:"]
[{"$nulls":5},"PFP-2.3"]
["NOME DA CONSULTORA:"]
[]
["PROJETO:",null,"CONTRATANTE:",null,null,"BASE: Nov/2021"]
[{"$f":"PFP!A6","v":"Estudos e Projeto Básico e Executivo do Sistema de Abastecimento de Água de Morro Cabeça no Tempo/PI"},null,"CODEVASF (SEDE)",null,null,"SINAPI/DF: Mai/2021"]
["Cod","DESCRIÇÃO",null,null,"%","R$"]
["A","ENCARGOS SOCIAIS BÁSICOS",null,null,{"$f":"SUM(E9:E17)","v":0},{"$f":"ROUND(E8*SUMIF(PFP!$B$8:$B$27,\"MO3\",PFP!$J$8:$J$27),2)","v":0}]
["A1","INSS",null,null,null,{"$f":"ROUND(E9*SUMIF(PFP!$B$8:$B$27,\"MO3\",PFP!$J$8:$J$27),2)","v":0}]
["A2","SESI",null,null,null,{"$f":"ROUND(E10*SUMIF(PFP!$B$8:$B$27,\"MO3\",PFP!$J$8:$J$27),2)","v":0}]
["A3","SENAI",null,null,null,{"$f":"ROUND(E11*SUMIF(PFP!$B$8:$B$27,\"MO3\",PFP!$J$8:$J$27),2)","v":0}]
["A4","INCRA",null,null,null,{"$f":"ROUND(E12*SUMIF(PFP!$B$8:$B$27,\"MO3\",PFP!$J$8:$J$27),2)","v":0}]
["A5","SEBRAE",null,null,null,{"$f":"ROUND(E13*SUMIF(PFP!$B$8:$B$27,\"MO3\",PFP!$J$8:$J$27),2)","v":0}]
["A6","Salário Educação",null,null,null,{"$f":"ROUND(E14*SUMIF(PFP!$B$8:$B$27,\"MO3\",PFP!$J$8:$J$27),2)","v":0}]
["A7","Seguro Contra Acidentes de Trabalho",null,null,null,{"$f":"ROUND(E15*SUMIF(PFP!$B$8:$B$27,\"MO3\",PFP!$J$8:$J$27),2)","v":0}]
["A8","FGTS",null,null,null,{"$f":"ROUND(E16*SUMIF(PFP!$B$8:$B$27,\"MO3\",PFP!$J$8:$J$27),2)","v":0}]
["A9","SECONCI",null,null,null,{"$f":"ROUND(E17*SUMIF(PFP!$B$8:$B$27,\"MO3\",PFP!$J$8:$J$27),2)","v":0}]
["B"," ENCARGOS SOCIAIS QUE RECEBEM INCIDÊNCIA DE \"A\"",null,null,{"$f":"ROUND(SUM(E19:E25),4)","v":0},{"$f":"ROUND(E18*SUMIF(PFP!$B$8:$B$27,\"MO3\",PFP!$J$8:$J$27),2)","v":0}]
["B3","Auxílio Enfermidade",null,null,null,{"$f":"ROUND(E19*SUMIF(PFP!$B$8:$B$27,\"MO3\",PFP!$J$8:$J$27),2)","v":0}]
["B4","13º Salário",null,null,null,{"$f":"ROUND(E20*SUMIF(PFP!$B$8:$B$27,\"MO3\",PFP!$J$8:$J$27),2)","v":0}]
["B5","Licença Paternidade",null,null,null,{"$f":"ROUND(E21*SUMIF(PFP!$B$8:$B$27,\"MO3\",PFP!$J$8:$J$27),2)","v":0}]
["B6","Faltas Justificadas",null,null,null,{"$f":"ROUND(E22*SUMIF(PFP!$B$8:$B$27,\"MO3\",PFP!$J$8:$J$27),2)","v":0}]
["B8","Auxílio Acidente de Trabalho",null,null,null,{"$f":"ROUND(E23*SUMIF(PFP!$B$8:$B$27,\"MO3\",PFP!$J$8:$J$27),2)","v":0}]
["B9","Férias Gozadas",null,null,null,{"$f":"ROUND(E24*SUMIF(PFP!$B$8:$B$27,\"MO3\",PFP!$J$8:$J$27),2)","v":0}]
["B10","Salário Maternidade",null,null,null,{"$f":"ROUND(E25*SUMIF(PFP!$B$8:$B$27,\"MO3\",PFP!$J$8:$J$27),2)","v":0}]
["C"," ENCARGOS SOCIAIS QUE NÃO RECEBEM INCIDÊNCIA DE \"A\"",null,null,{"$f":"ROUND(SUM(E27:E31),4)","v":0},{"$f":"ROUND(E26*SUMIF(PFP!$B$8:$B$27,\"MO3\",PFP!$J$8:$J$27),2)","v":0}]
["C1","Aviso Prévio Indenizado",null,null,null,{"$f":"ROUND(E27*SUMIF(PFP!$B$8:$B$27,\"MO3\",PFP!$J$8:$J$27),2)","v":0}]
["C2","Aviso Prévio Trabalhado",null,null,null,{"$f":"ROUND(E28*SUMIF(PFP!$B$8:$B$27,\"MO3\",PFP!$J$8:$J$27),2)","v":0}]
["C3","Férias Indenizadas",null,null,null,{"$f":"ROUND(E29*SUMIF(PFP!$B$8:$B$27,\"MO3\",PFP!$J$8:$J$27),2)","v":0}]
["C4","Depósito Rescisão Sem Justa Causa",null,null,null,{"$f":"ROUND(E30*SUMIF(PFP!$B$8:$B$27,\"MO3\",PFP!$J$8:$J$27),2)","v":0}]
["C5","Indenização Adicional",null,null,null,{"$f":"ROUND(E31*SUMIF(PFP!$B$8:$B$27,\"MO3\",PFP!$J$8:$J$27),2)","v":0}]
["D"," REINCIDÊNCIAS",null,null,{"$f":"ROUND(SUM(E33:E34),4)","v":0},{"$f":"ROUND(E32*SUMIF(PFP!$B$8:$B$27,\"MO3\",PFP!$J$8:$J$27),2)","v":0}]
["D1","Reincidência de \"A\" sobre \"B\"",null,null,null,{"$f":"ROUND(E33*SUMIF(PFP!$B$8:$B$27,\"MO3\",PFP!$J$8:$J$27),2)","v":0}]
["D2","Reincidência de \"A\" sobre Aviso Prévio Trabalhado e reincidência do FGTS sobre Aviso Prévio Indenizado",null,null,null,{"$f":"ROUND(E34*SUMIF(PFP!$B$8:$B$27,\"MO3\",PFP!$J$8:$J$27),2)","v":0}]
["K1c","ENCARGOS SOCIAIS",null,null,{"$f":"ROUND(E8+E18+E26+E32,4)","v":0},{"$f":"ROUND(E35*SUMIF(PFP!$B$8:$B$27,\"MO3\",PFP!$J$8:$J$27),2)","v":0}]
["Kc","TAXA DE RESSARCIMENTO DE DESPESAS E ENCARGOS SOBRE MO3",null,null,{"$f":"ROUND((1+E35+PFP3_FatorKd!E13)*(1+PFP3_FatorKd!E12)*(1+PFP3_FatorKd!E8),4)","v":1}]
["OBSERVAÇÃO: SOCIETÁRIOS E EQUIVALENTES"]
["1 - DISCRIMINAR OS ENCARGOS SOCIAIS COM SEUS RESPECTIVOS PERCENTUAS TOTALIZANDO OS MESMOS. "]
["2 - APLICAR O % TOTAL P/ CALCULAR OS E. SOCIAIS INCIDENTES NA MÃO-DE-OBRA DE SOCIETÁRIOS"]
["Kc - Taxa de Ressarcimento de Despesas e Encargos sobre a Mão de Obra SOCIETÁRIA (incide apenas no Insumo Codigo MO3)"]
["Kc = (1 + K1 + K2) x (1 + K3) x (1 + K4)"]

{"sheet":"PFP3_FatorKd","index":7,"n_rows":35,"n_cols":6,"rows_kept":35,"cut":false,"hidden":false,"merged":[[33,0,33,5],[34,0,34,5],[16,1,16,3],[13,1,13,3],[14,1,14,3],[15,1,15,3],[21,0,21,5],[26,0,26,5],[27,0,27,5],[22,0,22,5],[23,0,23,5],[24,0,24,5],[28,0,28,5],[29,0,29,5],[30,0,30,5],[31,0,31,5],[7,1,7,2],[25,0,25,5],[6,1,6,2],[0,0,1,4],[2,0,2,5],[5,0,5,1],[5,2,5,4],[4,2,4,4],[3,0,3,5],[32,0,32,5],[12,1,12,3],[11,1,11,3],[8,1,8,2],[9,1,9,2],[10,1,10,2]]}
["DESPESAS FISCAIS E CUSTOS DIVERSOS: Kc",{"$nulls":4},"CODIGO:"]
[{"$nulls":5},"PFP-3"]
["NOME DA CONSULTORA:"]
[]
["PROJETO:",null,"CONTRATANTE:",null,null,"BASE: Nov/2021"]
[{"$f":"PFP!A6","v":"Estudos e Projeto Básico e Executivo do Sistema de Abastecimento de Água de Morro Cabeça no Tempo/PI"},null,"CODEVASF (SEDE)",null,null,"PROP: Jul/2021"]
["Cod","DESCRIÇÃO1",null,"% preço2","% custo4","R$"]
["K4","TRIBUTOS",null,{"$f":"ROUND(D9+D10+D11,4)","v":0},{"$f":"ROUND(E9+E10+E11,4)","v":0},{"$f":"E8*SUM(SUMIF(PFP!$B$8:$B$27,\"MO1\",PFP!$J$8:$J$27)*(1+PFP2.1_FatorKa!$E$35)+SUMIF(PFP!$B$8:$B$27,\"MO2\",PFP!$J$8:$J$27)*(1+PFP2.2_FatorKb!$E$35)+SUMIF(PFP!$B$8:$B$27,\"<>MO*\",PFP!$J$8:$J$27)+$F$13+$F$12)","v":0}]
["K4.1","ISS",null,null,{"$f":"ROUND((1/(1-$D$8))*D9,4)","v":0},{"$f":"E9*SUM(SUMIF(PFP!$B$8:$B$27,\"MO1\",PFP!$J$8:$J$27)*(1+PFP2.1_FatorKa!$E$35)+SUMIF(PFP!$B$8:$B$27,\"MO2\",PFP!$J$8:$J$27)*(1+PFP2.2_FatorKb!$E$35)+SUMIF(PFP!$B$8:$B$27,\"<>MO*\",PFP!$J$8:$J$27)+$F$13+$F$12)","v":0}]
["K4.2","PIS3 - aliquota efetiva aplicavel percentual-desconto",null,null,{"$f":"ROUND((1/(1-$D$8))*D10,4)","v":0},{"$f":"E10*SUM(SUMIF(PFP!$B$8:$B$27,\"MO1\",PFP!$J$8:$J$27)*(1+PFP2.1_FatorKa!$E$35)+SUMIF(PFP!$B$8:$B$27,\"MO2\",PFP!$J$8:$J$27)*(1+PFP2.2_FatorKb!$E$35)+SUMIF(PFP!$B$8:$B$27,\"<>MO*\",PFP!$J$8:$J$27)+$F$13+$F$12)","v":0}]
["K4.3","COFINS3 - aliquota efetiva aplicavel percentual-desconto",null,null,{"$f":"ROUND((1/(1-$D$8))*D11,4)","v":0},{"$f":"E11*SUM(SUMIF(PFP!$B$8:$B$27,\"MO1\",PFP!$J$8:$J$27)*(1+PFP2.1_FatorKa!$E$35)+SUMIF(PFP!$B$8:$B$27,\"MO2\",PFP!$J$8:$J$27)*(1+PFP2.2_FatorKb!$E$35)+SUMIF(PFP!$B$8:$B$27,\"<>MO*\",PFP!$J$8:$J$27)+$F$13+$F$12)","v":0}]
["K3","REMUNERAÇÃO DA EMPRESA (LUCRO)",null,null,null,{"$f":"E12*SUM(SUMIF(PFP!$B$8:$B$27,\"MO1\",PFP!$J$8:$J$27)*(1+PFP2.1_FatorKa!$E$35)+SUMIF(PFP!$B$8:$B$27,\"MO2\",PFP!$J$8:$J$27)*(1+PFP2.2_FatorKb!$E$35)+SUMIF(PFP!$B$8:$B$27,\"<>MO*\",PFP!$J$8:$J$27)+$F$13)","v":0}]
["K2","CUSTOS DA ADMINISTRAÇÃO CENTRAL",null,null,{"$f":"ROUND(SUM(E14:E16),4)","v":0},{"$f":"ROUND(E13*SUMIF(PFP!$B$8:$B$27,\"MO*\",PFP!$J$8:$J$27),2)","v":0}]
["K2.1","Custos da administração central da empresa (diretoria, pessoal técnico de apoio e pessoal administrativo não diretamente vinculado à prestação dos serviços)",null,null,null,{"$f":"ROUND(E14*SUMIF(PFP!$B$8:$B$27,\"MO*\",PFP!$J$8:$J$27),2)","v":0}]
["K2.2","Outras despesas que afetam o custo de produção como treinamento, biblioteca, programa de qualidade, programa de benefícios, auditoria interna e externa",null,null,null,{"$f":"ROUND(E15*SUMIF(PFP!$B$8:$B$27,\"MO*\",PFP!$J$8:$J$27),2)","v":0}]
["K2.3","Despesas fixas e variaveis com patrimônio, aluguéis, comunicação, manutenção e transporte não diretamente relacionados com o custo direto dos serviços",null,null,null,{"$f":"ROUND(E16*SUMIF(PFP!$B$8:$B$27,\"MO*\",PFP!$J$8:$J$27),2)","v":0}]
["Kd","TAXA RESSARCIMENTO DE DESPESAS SOBRE CUSTOS DIVERSOS",null,null,{"$f":"ROUND((1+E12)*(1+E8),4)","v":1}]
["NOME DO INFORMANTE:",null,null,null,"QUALIFICAÇÃO:"]
[]
["ASSINATURA:",null,null,null,"DATA:"]
[]
["Observação:"]
["1 - RELACIONAR OS CUSTOS DE ADMINISTRAÇÃO COM RESPECTIVOS PERCENTUAIS INCIDENTES NA MÃO -DE-OBRA"]
["1 - DISCRIMINAR OS TRIBUTOS QUE INCIDEM SOBRE OS CUSTOS DA PRESTAÇÃO DOS SERVIÇOS"]
["2 - K4 = INDICAR % DE CADA TRIBUTO E A SOMA DOS MESMOS (ex: ISS 5% + PIS 1,65% + COFINS 7,60% = 14,25%)"]
["3 - PIS e COFINS, Regime de Incidencia Acumulativa (0,65% e 3,00% - sem percentual de desconto) ou em Regime de Incidencia Não Acumulativa (1,65% e 7,60% - aplicável percentual de desconto) de acordo com a forma de apuração do lucro no IRPJ. APRESENTAR COMPROVANTES de aproveitamento de créditos tributários dos últimos 12 meses em caso de aplicação de \"percentual de desconto\"."]
["4 - AS DESPESAS FISCAIS (K4) INCIDEM SOBRE O TOTAL DA FATURA E NÃO SOBRE OS CUSTOS INCORRIDOS, "]
["     DEVENDO SER CALCULADO O K4' APLICANDO-SE A SEGUINTE FÓRMULA:"]
["     K4' = { [ 1 / ( 1 - K4) ] - 1 } x 100"]
[{"$f":"CONCATENATE(\"     K4' = { [ 1 / ( 1 - \",D8,\" ) ] - 1 } x 100\")","v":"     K4' = { [ 1 / ( 1 - 0 ) ] - 1 } x 100"}]
["Kc - Taxa de Ressarcimento de Despesas sobre Custos Diversos (incide sobre os Insumos Codigo DP e EM)"]
["Kc = (1 + K3) x (1 + K4)"]
["K2 - Incide sobre o Custo Total (CT) da Mão de Obra (MO* = MO1 + MO2)"]
["K3 - Incide sobre o Custo Total (CT) Mão de Obra com encargos (MO1 x Ka ou MO2 x Kb), demais Custos (DP e EM), e Custos da Administração Central (K2)"]
["K4 -  Incide sobre o Custo Total (CT) Mão de Obra com encargos (MO1 x Ka ou MO2 x Kb), demais Custos (DP e EM), e Custos da Administração Central (K2) e Lucro (K3)"]

{"sheet":"CRO1_Ins-Pro","index":8,"n_rows":27,"n_cols":10,"rows_kept":27,"cut":false,"hidden":false,"merged":[[0,7,0,9],[1,7,1,9],[42,8,42,9],[25,0,26,0],[25,1,26,1],[0,0,1,6]]}
["INSUMOS POR ETAPA/PRODUTO",{"$nulls":6},"CODIGO:"]
[{"$nulls":7},"CRO-1"]
["Cod.","Categoria / Insumo","Uni","Qde","CUD","PU","FatorK","EB","EVA","PBE"]
[{"$nulls":6},"Meses",3,1,1]
[{"$f":"PFP!C8","v":"P0"},{"$f":"PFP!D8","v":"Engenheiro coordenador (P8061)"},"mês",{"$f":"SUM(H5:J5)","v":1},{"$f":"PFP!G8","v":0},{"$f":"PFP!H8","v":0},{"$f":"PFP!I8","v":1},null,0.5,0.5]
[{"$f":"PFP!C9","v":"P1"},{"$f":"PFP!D9","v":"Engenheiro sênior (P8067)"},"mês",2,{"$f":"PFP!G9","v":0},{"$f":"PFP!H9","v":0},{"$f":"PFP!I9","v":1},null,1,1]
[{"$f":"PFP!C10","v":"P2"},{"$f":"PFP!D10","v":"Engenheiro pleno (P8066)"},"mês",3,{"$f":"PFP!G10","v":0},{"$f":"PFP!H10","v":0},{"$f":"PFP!I10","v":1},1,1,1]
[{"$f":"PFP!C11","v":"P3"},{"$f":"PFP!D11","v":"Engenheiro júnior (P8065)"},"mês",1,{"$f":"PFP!G11","v":0},{"$f":"PFP!H11","v":0},{"$f":"PFP!I11","v":1},null,null,1]
[{"$f":"PFP!C12","v":"T1"},{"$f":"PFP!D12","v":"Técnico de projetos/obra (P8147)"},"mês",3,{"$f":"PFP!G12","v":0},{"$f":"PFP!H12","v":0},{"$f":"PFP!I12","v":1},1,1,1]
[{"$f":"PFP!C13","v":"A1"},{"$f":"PFP!D13","v":"Secretária (P8135)"},"mês",1,{"$f":"PFP!G13","v":0},{"$f":"PFP!H13","v":0},{"$f":"PFP!I13","v":1},null,0.5,0.5]
[{"$f":"PFP!C14","v":"S1"},{"$f":"PFP!D14","v":"Analista sênior"},"mês",0.5,{"$f":"PFP!G14","v":0},{"$f":"PFP!H14","v":0},{"$f":"PFP!I14","v":1},null,0.5]
[{"$f":"PFP!C15","v":"S2"},{"$f":"PFP!D15","v":"Analista pleno"},"mês",0.5,{"$f":"PFP!G15","v":0},{"$f":"PFP!H15","v":0},{"$f":"PFP!I15","v":1},null,0.5]
[{"$f":"PFP!C16","v":"S3"},{"$f":"PFP!D16","v":"Analista júnior"},"mês",1,{"$f":"PFP!G16","v":0},{"$f":"PFP!H16","v":0},{"$f":"PFP!I16","v":1},null,null,1]
[{"$f":"PFP!C17","v":"ECA"},{"$f":"PFP!D17","v":"Encargos Comp. e Adicionais"},"mês",11,{"$f":"PFP!G17","v":0},{"$f":"PFP!H17","v":0},{"$f":"PFP!I17","v":1},null,{"$f":"SUM(I5:I13)","v":5},{"$f":"SUM(J5:J13)","v":6}]
[{"$f":"PFP!C18","v":"AT1"},{"$f":"PFP!D18","v":"Auxilio Transporte Analista junior"},"mês",1,{"$f":"PFP!G18","v":0},{"$f":"PFP!H18","v":0},{"$f":"PFP!I18","v":1},null,{"$f":"I13","v":0},{"$f":"J13","v":1}]
[{"$f":"PFP!C19","v":"AT2"},{"$f":"PFP!D19","v":"Auxilio Transporte Técnicos"},"mês",2,{"$f":"PFP!G19","v":0},{"$f":"PFP!H19","v":0},{"$f":"PFP!I19","v":1},null,{"$f":"I9","v":1},{"$f":"J9","v":1}]
[{"$f":"PFP!C20","v":"AT3"},{"$f":"PFP!D20","v":"Auxilio Transporte Secretária"},"mês",1,{"$f":"PFP!G20","v":0},{"$f":"PFP!H20","v":0},{"$f":"PFP!I20","v":1},null,{"$f":"I10","v":0.5},{"$f":"J10","v":0.5}]
[{"$f":"PFP!C21","v":"V1"},{"$f":"PFP!D21","v":"Diárias"},"dia",28,{"$f":"PFP!G21","v":0},{"$f":"PFP!H21","v":0},{"$f":"PFP!I21","v":1},null,{"$f":"I4*7*2","v":14},{"$f":"J4*7*2","v":14}]
[{"$f":"PFP!C22","v":"V2"},{"$f":"PFP!D22","v":"Pick-up Cab.dupla 2.0 Flex"},"un",14,{"$f":"PFP!G22","v":0},{"$f":"PFP!H22","v":0},{"$f":"PFP!I22","v":1},null,{"$f":"I18/2","v":7},{"$f":"J18/2","v":7}]
[{"$f":"PFP!C23","v":"V3"},{"$f":"PFP!D23","v":"Passagens Aéreas (ida e volta)"},"un",4,{"$f":"PFP!G23","v":0},{"$f":"PFP!H23","v":0},{"$f":"PFP!I23","v":1},null,2,2]
[{"$f":"PFP!C24","v":"M1"},{"$f":"PFP!D24","v":"Relatório Parcial"},"un",9,{"$f":"PFP!G24","v":0},{"$f":"PFP!H24","v":0},{"$f":"PFP!I24","v":1},3,3,3]
[{"$f":"PFP!C25","v":"M2"},{"$f":"PFP!D25","v":"Relatório Final"},"un",9,{"$f":"PFP!G25","v":0},{"$f":"PFP!H25","v":0},{"$f":"PFP!I25","v":1},3,3,3]
[{"$f":"PFP!C26","v":"TOP"},{"$f":"PFP!D26","v":"Total Serviços Cartográficos"},"un",1,{"$f":"PFP!G26","v":"-"},{"$f":"PFP!H26","v":0},{"$f":"PFP!I26","v":"-"},1]
[{"$f":"PFP!C27","v":"GEO"},{"$f":"PFP!D27","v":"Total Serviços Geotécnicos"},"un",1,{"$f":"PFP!G27","v":"-"},{"$f":"PFP!H27","v":0},{"$f":"PFP!I27","v":"-"},1]
[{"$f":"PFP!C28","v":"AMB"},{"$f":"PFP!D28","v":"Total Serviços Ambientais"},"un",1,{"$f":"PFP!G28","v":"-"},{"$f":"PFP!H28","v":0},{"$f":"PFP!I28","v":"-"},1]
["TOTAL","VALOR TOTAL POR PRODUTO","R$",0,null,null,null,{"$f":"SUM(H5:H25*$F$5:$F$25)","v":0},{"$f":"SUM(I5:I25*$F$5:$F$25)","v":0},{"$f":"SUM(J5:J25*$F$5:$F$25)","v":0}]
[null,null,"%",{"$error":"#DIV/0!"},null,null,null,{"$f":"ROUND(H26/$D$26,5)","v":{"$error":"#DIV/0!"}},{"$f":"ROUND(I26/$D$26,5)","v":{"$error":"#DIV/0!"}},{"$error":"#DIV/0!"}]